lending/lending_fUSD_20240723
["ID","MTS","AMOUNT","RATE_DAILY","PERIOD"]
[333029181,1721771445561,-500.0,0.00010958,2]
[333029182,1721771445571,-575.9,0.00010958,2]
[333029183,1721771445580,-509.65555361,0.00010958,2]
[333029184,1721771445589,-500.0,0.00010958,2]
[333029185,1721771445599,-500.0,0.00010958,2]
[333029186,1721771445608,-500.0,0.00010958,2]
[333029187,1721771445618,-500.0,0.00010958,2]
[333029188,1721771445628,-500.0,0.00010958,2]
[333029189,1721771445637,-500.0,0.00010958,2]
[333029190,1721771445647,-434.8,0.00010958,2]
[333029191,1721771445656,-500.0,0.00010958,2]
[333029192,1721771445665,-500.0,0.00010958,2]
[333029193,1721771445675,-468.26,0.00010958,2]
[333029194,1721771445684,-500.0,0.00010958,2]
[333029195,1721771445693,-500.0,0.00010958,2]
[333029196,1721771445704,-500.0,0.00010958,2]
[333029197,1721771445713,-500.0,0.00010958,2]
[333029198,1721771445723,-500.0,0.00010958,2]
[333029199,1721771445732,-195.99,0.00010958,2]
[333029200,1721771445741,-500.0,0.00010958,2]
[333029201,1721771445750,-220.66,0.00010958,2]
[333029203,1721771445760,-500.0,0.00010958,2]
[333029205,1721771445770,-500.0,0.00010958,2]
[333029206,1721771445779,-500.0,0.00010958,2]
[333029208,1721771445788,-500.0,0.00010958,2]
[333029210,1721771445798,-186.76,0.00010958,2]
[333029212,1721771445807,-500.0,0.00010958,2]
[333029214,1721771445817,-500.0,0.00010958,2]
[333029216,1721771445826,-591.11,0.00010958,2]
[333029218,1721771445836,-500.0,0.00010958,2]
[333029220,1721771445845,-500.0,0.00010958,2]
[333029221,1721771445854,-625.79,0.00010958,2]
[333029223,1721771445864,-500.0,0.00010958,2]
[333029225,1721771445873,-500.0,0.00010958,2]
[333029227,1721771445883,-500.0,0.00010958,2]
[333029229,1721771445892,-500.0,0.00010958,2]
[333029231,1721771445901,-500.0,0.00010958,2]
[333029232,1721771445911,-500.0,0.00010958,2]
[333029234,1721771445920,-500.0,0.00010958,2]
[333029237,1721771445930,-500.0,0.00010958,2]
[333029240,1721771445939,-228.17,0.00010958,2]
[333029243,1721771445949,-500.0,0.00010958,2]
[333029245,1721771445958,-500.0,0.00010958,2]
[333029246,1721771445968,-286.53,0.00010958,2]
[333029247,1721771445977,-500.0,0.00010958,2]
[333029248,1721771445987,-369.79,0.00010958,2]
[333029249,1721771445996,-500.0,0.00010958,2]
[333029250,1721771446006,-500.0,0.00010958,2]
[333029251,1721771446015,-500.0,0.00010958,2]
[333029252,1721771446026,-500.0,0.00010958,2]
[333029253,1721771446036,-639.21,0.00010958,2]
[333029254,1721771446047,-500.0,0.00010958,2]
[333029255,1721771446057,-500.0,0.00010958,2]
[333029256,1721771446068,-500.0,0.00010958,2]
[333029257,1721771446078,-500.0,0.00010958,2]
[333029258,1721771446089,-347.1,0.00010958,2]
[333029259,1721771446099,-500.0,0.00010958,2]
[333029260,1721771446111,-445.47,0.00010958,2]
[333029261,1721771446121,-500.0,0.00010958,2]
[333029262,1721771446131,-500.0,0.00010958,2]
[333029263,1721771446140,-500.0,0.00010958,2]
[333029264,1721771446150,-500.0,0.00010958,2]
[333029265,1721771446163,-398.3879088,0.00010958,2]
[333029266,1721771446174,-521.82541979,0.00010958,2]
[333029267,1721771446184,-500.0,0.00010958,2]
[333029268,1721771446196,-500.0,0.00010958,2]
[333029269,1721771446207,-154.23,0.00010958,2]
[333029270,1721771446217,-500.0,0.00010958,2]
[333029271,1721771446230,-500.0,0.00010958,2]
[333029272,1721771446242,-500.0,0.00010958,2]
[333029273,1721771446252,-500.0,0.00010958,2]
[333029274,1721771446261,-503.08058251,0.00010958,2]
[333029275,1721771446270,-505.08561024,0.00010958,2]
[333029276,1721771446282,-164.03929732,0.00010958,2]
[333029277,1721771446291,-500.0,0.00010958,2]
[333029278,1721771446300,-500.0,0.00010958,2]
[333029279,1721771446310,-500.0,0.00010958,2]
[333029280,1721771446321,-536.63,0.00010958,2]
[333029282,1721771446330,-621.41443663,0.00010958,2]
[333029284,1721771446340,-501.76885057,0.00010958,2]
[333029285,1721771446350,-500.0,0.00010958,2]
[333029286,1721771446359,-500.0,0.00010958,2]
[333029287,1721771446369,-500.0,0.00010958,2]
[333029288,1721771446378,-556.61609708,0.00010958,2]
[333029289,1721771446387,-376.33,0.00010958,2]
[333029290,1721771446397,-500.0,0.00010958,2]
[333029291,1721771446407,-575.81736396,0.00010958,2]
[333029292,1721771446417,-500.0,0.00010958,2]
[333029293,1721771446426,-509.6,0.00010958,2]
[333029294,1721771446435,-505.5085334,0.00010958,2]
[333029295,1721771446445,-500.32,0.00010958,2]
[333029296,1721771446456,-500.0,0.00010958,2]
[333029297,1721771446466,-500.0,0.00010958,2]
[333029298,1721771446475,-500.0,0.00010958,2]
[333029299,1721771446485,-500.0,0.00010958,2]
[333029300,1721771446495,-500.0,0.00010958,2]
[333029301,1721771446504,-500.0,0.00010958,2]
[333029302,1721771446514,-589.0167821,0.00010958,2]
[333029303,1721771446524,-500.0,0.00010958,2]
[333029304,1721771446533,-347.44581063,0.00010958,2]
[333029305,1721771446542,-500.0,0.00010958,2]
[333029306,1721771446552,-500.0,0.00010958,2]
[333029307,1721771446562,-500.0,0.00010958,2]
[333029308,1721771446572,-500.0,0.00010958,2]
[333029309,1721771446581,-500.0,0.00010958,2]
[333029310,1721771446591,-500.0,0.00010958,2]
[333029311,1721771446601,-504.41550968,0.00010958,2]
[333029312,1721771446610,-500.0,0.00010958,2]
[333029313,1721771446620,-500.0,0.00010958,2]
[333029314,1721771446630,-500.0,0.00010958,2]
[333029315,1721771446640,-275.68,0.00010958,2]
[333029316,1721771446649,-500.0,0.00010958,2]
[333029317,1721771446659,-472.35,0.00010958,2]
[333029318,1721771446669,-500.0,0.00010958,2]
[333029319,1721771446678,-500.0,0.00010958,2]
[333029320,1721771446688,-500.0,0.00010958,2]
[333029321,1721771446697,-624.4,0.00010958,2]
[333029322,1721771446707,-612.22,0.00010958,2]
[333029323,1721771446716,-497.90252718,0.00010958,2]
[333029324,1721771446726,-500.0,0.00010958,2]
[333029326,1721771446736,-500.0,0.00010958,2]
[333029327,1721771446746,-502.74823885,0.00010958,2]
[333029328,1721771446756,-500.0,0.00010958,2]
[333029329,1721771446765,-500.0,0.00010958,2]
[333029330,1721771446775,-500.0,0.00010958,2]
[333029331,1721771446785,-500.0,0.00010958,2]
[333029332,1721771446794,-500.0,0.00010958,2]
[333029333,1721771446804,-500.0,0.00010958,2]
[333029334,1721771446814,-500.0,0.00010958,2]
[333029335,1721771446823,-500.0,0.00010958,2]
[333029336,1721771446833,-498.83,0.00010958,2]
[333029337,1721771446842,-503.24765916,0.00010958,2]
[333029338,1721771446851,-500.0,0.00010958,2]
[333029339,1721771446860,-627.17,0.00010958,2]
[333029340,1721771446870,-500.0,0.00010958,2]
[333029341,1721771446879,-500.0,0.00010958,2]
[333029342,1721771446889,-500.0,0.00010958,2]
[333029343,1721771446898,-523.07674386,0.00010958,2]
[333029344,1721771446908,-500.0,0.00010958,2]
[333029345,1721771446918,-500.0,0.00010958,2]
[333029346,1721771446928,-500.0,0.00010958,2]
[333029347,1721771446938,-501.21119569,0.00010958,2]
[333029348,1721771446948,-500.0,0.00010958,2]
[333029349,1721771446959,-506.48332626,0.00010958,2]
[333029350,1721771446968,-500.0,0.00010958,2]
[333029351,1721771446979,-500.0,0.00010958,2]
[333029352,1721771446989,-502.15487925,0.00010958,2]
[333029353,1721771446999,-500.0,0.00010958,2]
[333029354,1721771447009,-500.0,0.00010958,2]
[333029355,1721771447019,-500.0,0.00010958,2]
[333029356,1721771447028,-509.47356738,0.00010958,2]
[333029357,1721771447038,-506.12704419,0.00010958,2]
[333029358,1721771447049,-500.0,0.00010958,2]
[333029359,1721771447058,-500.0,0.00010958,2]
[333029360,1721771447068,-500.0,0.00010958,2]
[333029361,1721771447077,-500.0,0.00010958,2]
[333029362,1721771447086,-504.02489628,0.00010958,2]
[333029363,1721771447096,-500.0,0.00010958,2]
[333029364,1721771447106,-500.0,0.00010958,2]
[333029365,1721771447116,-500.0,0.00010958,2]
[333029366,1721771447126,-503.70719636,0.00010958,2]
[333029367,1721771447136,-500.0,0.00010958,2]
[333029368,1721771447146,-500.0,0.00010958,2]
[333029369,1721771447158,-500.0,0.00010958,2]
[333029370,1721771447168,-588.07,0.00010958,2]
[333029371,1721771447179,-500.0,0.00010958,2]
[333029372,1721771447189,-500.0,0.00010958,2]
[333029373,1721771447200,-500.0,0.00010958,2]
[333029374,1721771447214,-503.32586384,0.00010958,2]
[333029375,1721771447224,-500.0,0.00010958,2]
[333029376,1721771447235,-170.05,0.00010958,2]
[333029377,1721771447247,-192.45540078,0.00010958,2]
[333029378,1721771447258,-500.0,0.00010958,2]
[333029379,1721771447267,-500.0,0.00010958,2]
[333029380,1721771447276,-502.22607303,0.00010958,2]
[333029381,1721771447286,-501.52405235,0.00010958,2]
[333029382,1721771447296,-510.22808668,0.00010958,2]
[333029383,1721771447305,-500.0,0.00010958,2]
[333029384,1721771447315,-587.94281746,0.00010958,2]
[333029385,1721771447324,-500.0,0.00010958,2]
[333029386,1721771447334,-501.88335424,0.00010958,2]
[333029387,1721771447344,-631.72,0.00010958,2]
[333029388,1721771447354,-501.53931747,0.00010958,2]
[333029389,1721771447363,-500.0,0.00010958,2]
[333029390,1721771447373,-500.0,0.00010958,2]
[333029391,1721771447383,-590.74,0.00010958,2]
[333029392,1721771447392,-500.0,0.00010958,2]
[333029393,1721771447402,-285.42,0.00010958,2]
[333029394,1721771447411,-500.0,0.00010958,2]
[333029395,1721771447421,-500.0,0.00010958,2]
[333029396,1721771447430,-500.0,0.00010958,2]
[333029397,1721771447440,-562.44,0.00010958,2]
[333029398,1721771447450,-500.0,0.00010958,2]
[333029399,1721771447461,-500.0,0.00010958,2]
[333029400,1721771447470,-500.0,0.00010958,2]
[333029401,1721771447480,-500.0,0.00010958,2]
[333029402,1721771447489,-500.0,0.00010958,2]
[333029403,1721771447499,-500.0,0.00010958,2]
[333029404,1721771447509,-502.73144484,0.00010958,2]
[333029405,1721771447519,-507.40961043,0.00010958,2]
[333029406,1721771447528,-500.0,0.00010958,2]
[333029407,1721771447538,-500.0,0.00010958,2]
[333029408,1721771447547,-500.0,0.00010958,2]
[333029409,1721771447557,-500.0,0.00010958,2]
[333029410,1721771447567,-500.0,0.00010958,2]
[333029411,1721771447576,-500.0,0.00010958,2]
[333029412,1721771447586,-500.0,0.00010958,2]
[333029413,1721771447595,-500.0,0.00010958,2]
[333029414,1721771447605,-404.36,0.00010958,2]
[333029415,1721771447615,-500.0,0.00010958,2]
[333029416,1721771447691,-409.35246607,0.00010958,2]
[333029417,1721771447701,-500.0,0.00010958,2]
[333029418,1721771447711,-467.18,0.00010958,2]
[333029419,1721771447721,-500.0,0.00010958,2]
[333029420,1721771447730,-500.0,0.00010958,2]
[333029421,1721771447740,-500.0,0.00010958,2]
[333029422,1721771447750,-500.0,0.00010958,2]
[333029423,1721771447759,-500.0,0.00010958,2]
[333029424,1721771447768,-500.0,0.00010958,2]
[333029425,1721771447778,-457.78,0.00010958,2]
[333029426,1721771447787,-500.0,0.00010958,2]
[333029427,1721771447797,-210.57199001,0.00010958,2]
[333029428,1721771447807,-500.0,0.00010958,2]
[333029429,1721771447816,-500.0,0.00010958,2]
[333029430,1721771447826,-341.05,0.00010958,2]
[333029431,1721771447835,-500.0,0.00010958,2]
[333029432,1721771447845,-354.61,0.00010958,2]
[333029433,1721771447854,-562.49,0.00010958,2]
[333029434,1721771447863,-553.92,0.00010958,2]
[333029435,1721771447873,-500.0,0.00010958,2]
[333029436,1721771447883,-553.92,0.00010958,2]
[333029437,1721771447893,-500.0,0.00010958,2]
[333029438,1721771447902,-500.0,0.00010958,2]
[333029439,1721771447911,-500.0,0.00010958,2]
[333029440,1721771447921,-500.0,0.00010958,2]
[333029441,1721771447931,-500.0,0.00010958,2]
[333029442,1721771447940,-224.78,0.00010958,2]
[333029443,1721771447950,-500.0,0.00010958,2]
[333029444,1721771447959,-166.1,0.00010958,2]
[333029445,1721771447969,-500.0,0.00010958,2]
[333029446,1721771447978,-500.0,0.00010958,2]
[333029447,1721771447988,-500.0,0.00010958,2]
[333029448,1721771447997,-150.13642237,0.00010958,2]
[333029449,1721771448007,-500.0,0.00010958,2]
[333029450,1721771448015,-154.35,0.00010958,2]
[333029451,1721771448025,-500.0,0.00010958,2]
[333029452,1721771448035,-561.58,0.00010958,2]
[333029453,1721771448044,-500.0,0.00010958,2]
[333029454,1721771448054,-500.0,0.00010958,2]
[333029455,1721771448064,-500.0,0.00010958,2]
[333029456,1721771448074,-500.0,0.00010958,2]
[333029457,1721771448083,-500.0,0.00010958,2]
[333029458,1721771448093,-500.0,0.00010958,2]
[333029459,1721771448103,-505.42895352,0.00010958,2]
[333029460,1721771448112,-524.43849503,0.00010958,2]
[333029461,1721771448122,-415.09,0.00010958,2]
[333029462,1721771448131,-500.0,0.00010958,2]
[333029463,1721771448141,-500.0,0.00010958,2]
[333029464,1721771448151,-500.0,0.00010958,2]
[333029465,1721771448164,-500.0,0.00010958,2]
[333029466,1721771448174,-500.0,0.00010958,2]
[333029467,1721771448183,-500.0,0.00010958,2]
[333029468,1721771448193,-500.0,0.00010958,2]
[333029469,1721771448203,-500.0,0.00010958,2]
[333029470,1721771448213,-255.47462849,0.00010958,2]
[333029471,1721771448223,-500.0,0.00010958,2]
[333029472,1721771448233,-500.0,0.00010958,2]
[333029473,1721771448243,-500.0,0.00010958,2]
[333029474,1721771448253,-500.0,0.00010958,2]
[333029475,1721771448262,-395.22,0.00010958,2]
[333029476,1721771448270,-500.0,0.00010958,2]
[333029477,1721771448280,-500.0,0.00010958,2]
[333029478,1721771448290,-639.54441715,0.00010958,2]
[333029479,1721771448299,-501.93429829,0.00010958,2]
[333029480,1721771448308,-500.0,0.00010958,2]
[333029481,1721771448318,-504.14507711,0.00010958,2]
[333029482,1721771448327,-500.0,0.00010958,2]
[333029483,1721771448338,-500.0,0.00010958,2]
[333029484,1721771448348,-500.0,0.00010958,2]
[333029485,1721771448358,-608.82,0.00010958,2]
[333029486,1721771448368,-500.0,0.00010958,2]
[333029487,1721771448378,-502.93850599,0.00010958,2]
[333029488,1721771448388,-500.0,0.00010958,2]
[333029489,1721771448398,-500.0,0.00010958,2]
[333029490,1721771448408,-401.88,0.00010958,2]
[333029491,1721771448417,-500.0,0.00010958,2]
[333029492,1721771448426,-500.0,0.00010958,2]
[333029493,1721771448435,-500.0,0.00010958,2]
[333029494,1721771448445,-500.0,0.00010958,2]
[333029495,1721771448455,-538.83,0.00010958,2]
[333029496,1721771448466,-500.0,0.00010958,2]
[333029497,1721771448475,-634.03,0.00010958,2]
[333029498,1721771448485,-504.88322122,0.00010958,2]
[333029499,1721771448495,-510.09,0.00010958,2]
[333029500,1721771448504,-500.0,0.00010958,2]
[333029501,1721771448513,-648.85,0.00010958,2]
[333029502,1721771448523,-500.0,0.00010958,2]
[333029503,1721771448532,-188.65,0.00010958,2]
[333029504,1721771448542,-501.91436447,0.00010958,2]
[333029505,1721771448552,-579.22,0.00010958,2]
[333029506,1721771448561,-579.22,0.00010958,2]
[333029507,1721771448571,-500.0,0.00010958,2]
[333029508,1721771448580,-500.0,0.00010958,2]
[333029509,1721771448590,-500.0,0.00010958,2]
[333029510,1721771448600,-617.1,0.00010958,2]
[333029511,1721771448611,-418.79,0.00010958,2]
[333029512,1721771448620,-500.0,0.00010958,2]
[333029513,1721771448630,-504.64395121,0.00010958,2]
[333029514,1721771448640,-500.0,0.00010958,2]
[333029515,1721771448650,-500.0,0.00010958,2]
[333029516,1721771448660,-598.84,0.00010958,2]
[333029517,1721771448670,-503.0300961,0.00010958,2]
[333029518,1721771448680,-620.44,0.00010958,2]
[333029519,1721771448691,-501.07428715,0.00010958,2]
[333029520,1721771448701,-500.0,0.00010958,2]
[333029521,1721771448711,-501.73616421,0.00010958,2]
[333029522,1721771448721,-500.0,0.00010958,2]
[333029523,1721771448730,-500.0,0.00010958,2]
[333029524,1721771448740,-580.91,0.00010958,2]
[333029525,1721771448749,-500.0,0.00010958,2]
[333029526,1721771448759,-215.73,0.00010958,2]
[333029527,1721771448768,-500.0,0.00010958,2]
[333029528,1721771448778,-500.0,0.00010958,2]
[333029529,1721771448787,-500.0,0.00010958,2]
[333029530,1721771448796,-500.0,0.00010958,2]
[333029531,1721771448805,-500.0,0.00010958,2]
[333029532,1721771448815,-302.71,0.00010958,2]
[333029533,1721771448825,-500.0,0.00010958,2]
[333029534,1721771448835,-500.0,0.00010958,2]
[333029535,1721771448845,-500.0,0.00010958,2]
[333029536,1721771448855,-225.42,0.00010958,2]
[333029537,1721771448866,-500.0,0.00010958,2]
[333029538,1721771448877,-500.0,0.00010958,2]
[333029539,1721771448886,-500.0,0.00010958,2]
[333029540,1721771448897,-505.82847403,0.00010958,2]
[333029541,1721771448907,-500.0,0.00010958,2]
[333029542,1721771448917,-782.3,0.00010958,2]
[333029543,1721771448928,-782.3,0.00010958,2]
[333029544,1721771448939,-782.3,0.00010958,2]
[333029545,1721771448949,-500.0,0.00010958,2]
[333029546,1721771448961,-500.0,0.00010958,2]
[333029547,1721771448971,-233.58,0.00010958,2]
[333029548,1721771448982,-500.0,0.00010958,2]
[333029549,1721771448992,-185.67244411,0.00010958,2]
[333029550,1721771449002,-500.0,0.00010958,2]
[333029551,1721771449013,-191.8,0.00010958,2]
[333029552,1721771449023,-500.0,0.00010958,2]
[333029553,1721771449033,-500.0,0.00010958,2]
[333029554,1721771449044,-381.06124377,0.00010958,2]
[333029555,1721771449055,-500.0,0.00010958,2]
[333029556,1721771449065,-341.45,0.00010958,2]
[333029557,1721771449075,-500.0,0.00010958,2]
[333029558,1721771449087,-500.0,0.00010958,2]
[333029559,1721771449097,-500.0,0.00010958,2]
[333029560,1721771449108,-577.03,0.00010958,2]
[333029561,1721771449119,-500.0,0.00010958,2]
[333029562,1721771449130,-500.0,0.00010958,2]
[333029563,1721771449140,-500.0,0.00010958,2]
[333029564,1721771449151,-500.0,0.00010958,2]
[333029565,1721771449165,-500.0,0.00010958,2]
[333029566,1721771449175,-500.0,0.00010958,2]
[333029567,1721771449185,-500.0,0.00010958,2]
[333029568,1721771449196,-500.0,0.00010958,2]
[333029569,1721771449207,-409.56,0.00010958,2]
[333029570,1721771449219,-500.0,0.00010958,2]
[333029571,1721771449229,-500.0,0.00010958,2]
[333029572,1721771449238,-500.0,0.00010958,2]
[333029573,1721771449251,-189.85,0.00010958,2]
[333029574,1721771449262,-500.0,0.00010958,2]
[333029575,1721771449274,-500.0,0.00010958,2]
[333029576,1721771449284,-500.0,0.00010958,2]
[333029577,1721771449295,-500.0,0.00010958,2]
[333029578,1721771449306,-500.0,0.00010958,2]
[333029579,1721771449316,-500.0,0.00010958,2]
[333029580,1721771449327,-500.0,0.00010958,2]
[333029581,1721771449337,-223.05,0.00010958,2]
[333029582,1721771449347,-500.0,0.00010958,2]
[333029583,1721771449358,-500.0,0.00010958,2]
[333029584,1721771449368,-500.0,0.00010958,2]
[333029585,1721771449379,-500.0,0.00010958,2]
[333029586,1721771449389,-274.49,0.00010958,2]
[333029587,1721771449399,-500.0,0.00010958,2]
[333029588,1721771449410,-500.0,0.00010958,2]
[333029589,1721771449419,-500.0,0.00010958,2]
[333029590,1721771449429,-500.0,0.00010958,2]
[333029591,1721771449440,-500.0,0.00010958,2]
[333029592,1721771449450,-500.0,0.00010958,2]
[333029593,1721771449460,-500.0,0.00010958,2]
[333029594,1721771449470,-306.68,0.00010958,2]
[333029595,1721771449481,-500.0,0.00010958,2]
[333029596,1721771449491,-500.0,0.00010958,2]
[333029597,1721771449501,-575.23,0.00010958,2]
[333029598,1721771449511,-500.0,0.00010958,2]
[333029599,1721771449521,-500.0,0.00010958,2]
[333029600,1721771449531,-500.0,0.00010958,2]
[333029601,1721771449542,-315.91,0.00010958,2]
[333029602,1721771449551,-500.0,0.00010958,2]
[333029603,1721771449562,-500.0,0.00010958,2]
[333029604,1721771449573,-585.14,0.00010958,2]
[333029605,1721771449584,-501.39899524,0.00010958,2]
[333029606,1721771449594,-500.0,0.00010958,2]
[333029607,1721771449606,-399.92,0.00010958,2]
[333029608,1721771449617,-502.70337155,0.00010958,2]
[333029609,1721771449627,-500.0,0.00010958,2]
[333029610,1721771449639,-173.55004003,0.00010958,2]
[333029611,1721771449650,-1223.01727,0.00010958,2]
[333029612,1721771449661,-500.0,0.00010958,2]
[333029613,1721771449672,-500.0,0.00010958,2]
[333029614,1721771449683,-500.0,0.00010958,2]
[333029615,1721771449694,-446.44,0.00010958,2]
[333029616,1721771449705,-500.0,0.00010958,2]
[333029617,1721771449718,-463.09,0.00010958,2]
[333029618,1721771449732,-500.0,0.00010958,2]
[333029619,1721771449742,-507.54658819,0.00010958,2]
[333029620,1721771449753,-513.7152695,0.00010958,2]
[333029621,1721771449763,-500.0,0.00010958,2]
[333029622,1721771449774,-500.0,0.00010958,2]
[333029623,1721771449784,-317.58,0.00010958,2]
[333029624,1721771449794,-500.0,0.00010958,2]
[333029625,1721771449803,-500.0,0.00010958,2]
[333029626,1721771449813,-500.0,0.00010958,2]
[333029627,1721771449822,-500.0,0.00010958,2]
[333029628,1721771449831,-500.0,0.00010958,2]
[333029629,1721771449841,-500.0,0.00010958,2]
[333029630,1721771449851,-588.03,0.00010958,2]
[333029631,1721771449860,-500.0,0.00010958,2]
[333029632,1721771449871,-150.0,0.00010958,2]
[333029633,1721771449880,-500.0,0.00010958,2]
[333029634,1721771449890,-516.07435929,0.00010958,2]
[333029635,1721771449900,-500.0,0.00010958,2]
[333029636,1721771449910,-500.0,0.00010958,2]
[333029637,1721771449920,-500.0,0.00010958,2]
[333029638,1721771449930,-500.0,0.00010958,2]
[333029639,1721771449940,-500.0,0.00010958,2]
[333029640,1721771449949,-500.0,0.00010958,2]
[333029641,1721771449960,-500.0,0.00010958,2]
[333029642,1721771449969,-608.96,0.00010958,2]
[333029643,1721771449979,-500.0,0.00010958,2]
[333029644,1721771449988,-500.0,0.00010958,2]
[333029645,1721771449998,-500.0,0.00010958,2]
[333029646,1721771450008,-500.0,0.00010958,2]
[333029647,1721771450018,-500.0,0.00010958,2]
[333029648,1721771450029,-500.0,0.00010958,2]
[333029649,1721771450038,-500.0,0.00010958,2]
[333029650,1721771450048,-500.0,0.00010958,2]
[333029651,1721771450057,-500.0,0.00010958,2]
[333029652,1721771450068,-500.0,0.00010958,2]
[333029653,1721771450078,-558.5,0.00010958,2]
[333029654,1721771450087,-500.0,0.00010958,2]
[333029655,1721771450096,-500.0,0.00010958,2]
[333029656,1721771450106,-500.0,0.00010958,2]
[333029657,1721771450115,-500.0,0.00010958,2]
[333029658,1721771450125,-500.0,0.00010958,2]
[333029659,1721771450134,-535.33,0.00010958,2]
[333029660,1721771450143,-500.0,0.00010958,2]
[333029661,1721771450152,-785.55,0.00010958,2]
[333029662,1721771450167,-500.0,0.00010958,2]
[333029663,1721771450176,-500.0,0.00010958,2]
[333029664,1721771450186,-785.55,0.00010958,2]
[333029665,1721771450195,-500.0,0.00010958,2]
[333029666,1721771450206,-500.0,0.00010958,2]
[333029667,1721771450216,-785.55,0.00010958,2]
[333029668,1721771450226,-500.0,0.00010958,2]
[333029669,1721771450235,-227.5,0.00010958,2]
[333029670,1721771450245,-500.0,0.00010958,2]
[333029671,1721771450255,-500.0,0.00010958,2]
[333029672,1721771450265,-500.0,0.00010958,2]
[333029673,1721771450274,-472.45874302,0.00010958,2]
[333029674,1721771450283,-500.0,0.00010958,2]
[333029675,1721771450293,-500.0,0.00010958,2]
[333029676,1721771450303,-500.0,0.00010958,2]
[333029677,1721771450312,-383.82,0.00010958,2]
[333029678,1721771450321,-500.0,0.00010958,2]
[333029679,1721771450331,-530.48,0.00010958,2]
[333029680,1721771450340,-500.0,0.00010958,2]
[333029681,1721771450350,-582.82,0.00010958,2]
[333029682,1721771450359,-500.0,0.00010958,2]
[333029683,1721771450369,-500.0,0.00010958,2]
[333029684,1721771450378,-500.0,0.00010958,2]
[333029685,1721771450388,-500.0,0.00010958,2]
[333029686,1721771450398,-500.0,0.00010958,2]
[333029687,1721771450407,-500.0,0.00010958,2]
[333029688,1721771450417,-500.0,0.00010958,2]
[333029689,1721771450426,-500.0,0.00010958,2]
[333029690,1721771450436,-500.0,0.00010958,2]
[333029691,1721771450446,-500.0,0.00010958,2]
[333029692,1721771450456,-500.0,0.00010958,2]
[333029693,1721771450467,-500.0,0.00010958,2]
[333029694,1721771450476,-500.0,0.00010958,2]
[333029695,1721771450486,-195.45,0.00010958,2]
[333029696,1721771450495,-500.0,0.00010958,2]
[333029697,1721771450505,-500.0,0.00010958,2]
[333029698,1721771450515,-500.0,0.00010958,2]
[333029699,1721771450527,-500.0,0.00010958,2]
[333029700,1721771450537,-563.18,0.00010958,2]
[333029701,1721771450547,-500.0,0.00010958,2]
[333029702,1721771450556,-598.63,0.00010958,2]
[333029703,1721771450566,-500.0,0.00010958,2]
[333029704,1721771450575,-500.0,0.00010958,2]
[333029705,1721771450585,-500.0,0.00010958,2]